[Event "Portuguese Team Blitz-ch 2022"]
[Site "Viseu"]
[Date "2022.06.12"]
[Round "6.6"]
[White "Santos, Antonio P"]
[Black "Sismeiro, Miguel"]
[Result "0-1"]
[ECO "D97"]
[WhiteElo "2182"]
[BlackElo "2148"]
[Annotator "TA"]
[PlyCount "62"]
[EventDate "2022.06.12"]
[EventType "team-tourn"]
[EventCountry "POR"]
[SourceTitle "playchess.com"]
[Source "ChessBase"]
[SourceQuality "1"]
[TimeControl "180+2"]

{[%evp 18,62,-4,-29,-23,-22,97,48,62,12,50,70,62,68,173,177,189,141,142,135,134,130,215,132,132,91,150,32,56,-40,-29,-42,-25,-79,-79,-79,-73,-128,-122,-126,-122,-278,-247,-543,-512,-927,-897]} 1. d4 {[%emt 0:00:02]} Nf6 {[%emt 0:00:01]} 2. c4 {[%emt 0:00:01]} g6 {[%emt 0:00:01]} 3. Nc3 {[%emt 0:00:02]} d5 {[%emt 0:00:01]} 4. Nf3 {[%emt 0:00:01]} Bg7 {[%emt 0:00:01]} 5. Qb3 {[%emt 0:00:01]} dxc4 {[%emt 0:00:02]} 6. Qxc4 {[%emt 0:00:01]} O-O {[%emt 0:00:02]} 7. e4 {[%emt 0:00:01]} a6 {[%emt 0:00:01]} 8. Qb3 {[%emt 0:00:02]} b5 {[%emt 0:00:06]} 9. e5 {[%emt 0:00:01]} Nfd7 {[%emt 0:00:01]} 10. Be3 {[%emt 0:00:02]} c5 $1 {[%emt 0:00:13] D97: Grünfeld: Russian System: 7 e4, replies other than 7...Bg4.} 11. e6 {[%emt 0:00:05]} fxe6 {[%emt 0:00:12]} (11... cxd4 $1 $11 12. exf7+ (12. exd7 Qxd7 13. Rd1 e5 $11) (12. Bxd4 Bxd4 13. Nxd4 Nc5 $15) (12. Nxd4 Nc5 $11) 12... Rxf7 13. Nxd4 (13. Bxd4 Bxd4 14. Nxd4 Nc5 $15) 13... Nc5) 12. Qxe6+ {[%emt 0:00:03]} (12. dxc5 $16 {Threatens to win with Rd1.} Qc7 13. Qxe6+ Kh8 14. Qxe7) 12... Kh8 $14 {[%emt 0:00:04][%cal Od7e5] White is slightly better.} 13. Qd5 {[%emt 0:00:22] [#] Against Ne5} (13. Qe4 $14 Qc7 14. dxc5 (14. Qxa8 Bb7 $14) (14. Qxe7 $2 Nc6 $19)) 13... Nb6 $146 {[%emt 0:00:18]} ({Predecessor:} 13... cxd4 14. Nxd4 Nb6 15. Qxd8 Rxd8 16. Ndxb5 axb5 17. Bxb6 Rd6 18. Be3 b4 19. Nd1 Bb7 {½-½ (29) Messner,H (2280)-Migl,D (2260) Wuerttemberg 1998}) 14. Qxd8 {[%emt 0:00:03]} Rxd8 {[%emt 0:00:01]} 15. dxc5 {[%emt 0:00:02]} N6d7 {[%emt 0:00:13]} ({Better is} 15... Nc4 $14) 16. O-O-O $36 {[%emt 0:00:28][%mdl 2048] White is in control.} Nc6 {[%emt 0:00:03]} 17. Ng5 {[%emt 0:00:12]} (17. Be2 $18) 17... Nde5 $16 {[%emt 0:00:17]} 18. Rxd8+ {[%emt 0:00:09]} Nxd8 {[%emt 0:00:01]} 19. Be2 {[%emt 0:00:06]} Ne6 {[%emt 0:00:06]} (19... Bb7 $16 {keeps fighting.}) 20. Nce4 {[%emt 0:00:14]} h6 {[%emt 0:00:11]} 21. Nf3 {[%emt 0:00:15]} Bb7 {[%emt 0:00:04]} (21... Ng4 $142) 22. Ned2 {[%emt 0:00:07]} (22. Nxe5 $16 Bxe5 23. Bf3) 22... Ng4 $14 {[%emt 0:00:08] [#]} 23. Nb3 {[%emt 0:00:12]} (23. Ng5 $1 $14 Nxf2 24. Rf1 (24. Nxe6 Nxh1 25. Nf4 Bf6 $11) (24. Bxf2 Nxg5 25. Be3 Rd8 $11) 24... Nxg5 25. Rxf2) 23... Nxe3 $15 {[%emt 0:00:17]} 24. fxe3 {[%emt 0:00:01]} Rc8 {[%emt 0:00:01]} 25. Kd2 {[%emt 0:00:36]} (25. Bd3 $11 {remains equal.}) 25... Bxb2 $17 {[%emt 0:00:10]} 26. Rb1 {[%emt 0:00:09]} Ba3 {[%emt 0:00:18] Black is more active.} 27. Nfd4 {[%emt 0:00:16]} ({White should play} 27. Ne5) 27... Nxc5 {[%emt 0:00:03]} 28. Nxc5 {[%emt 0:00:02]} Bxc5 {[%emt 0:00:02] A strong pair of Bishops.} 29. Rf1 $2 {[%emt 0:00:05] [#]} (29. Bf3 $17 {was necessary.} Bxf3 30. Nxf3) 29... Bd5 {[%emt 0:00:25]} 30. a4 $2 {[%emt 0:00:04]} (30. Bd3) 30... Bb4+ $19 {[%emt 0:00:07]} 31. Kd3 {[%emt 0:00:12]} (31. Kd1 $142 e5 32. axb5 exd4 33. Bd3 axb5 34. Rf4) 31... e5 {Black used his chance.  Weighted Error Value: White=0.82/Black=0.24 (precise)} 0-1

[Event "Portuguese Team Blitz-ch 2022"]
[Site "Viseu"]
[Date "2022.06.12"]
[Round "6.7"]
[White "Pintor, Simao Maciel Abranch"]
[Black "Bartolo, Filipe Diogo Correia"]
[Result "1-0"]
[ECO "A05"]
[WhiteElo "2066"]
[BlackElo "1811"]
[Annotator "TA"]
[PlyCount "82"]
[EventDate "2022.06.12"]
[EventType "team-tourn"]
[EventCountry "POR"]
[SourceTitle "playchess.com"]
[Source "ChessBase"]
[SourceQuality "1"]
[TimeControl "180+2"]

{[%evp 20,82,0,0,0,0,17,9,18,8,11,25,30,4,8,10,0,-10,-16,-62,0,0,0,0,0,0,0,-37,-38,-91,-109,-237,-244,-243,-243,-245,-186,-171,-176,-204,-91,-202,-202,-402,-393,-1856,-1616,-1670,-1476,-29992,-581,-533,-473,-986,-925,-29994,-29994,-29994,-29962,-29991,-2324,-29990,-29991,-29991,-29992]} 1. Nf3 {[%emt 0:00:01]} Nf6 {[%emt 0:00:04]} 2. g3 {[%emt 0:00:01]} g6 {[%emt 0:00:00]} 3. b3 {[%emt 0:00:01]} Bg7 {[%emt 0:00:01]} 4. Bb2 {[%emt 0:00:01]} O-O 5. Bg2 d6 {[%emt 0:00:02]} 6. d4 {[%emt 0:00:02]} Nbd7 {[%emt 0:00:02][%cal Bb8d7,Bd7c5,Bc5e6][%mdl 32]} 7. O-O {[%emt 0:00:01]} c6 {[%emt 0:00:04]} 8. c4 {[%emt 0:00:07]} Re8 {[%emt 0:00:06]} 9. Nc3 {[%emt 0:00:09][%cal Bb1c3,Bc3e4,Be4d6][%mdl 32]} e5 {[%emt 0:00:07]} 10. dxe5 {[%emt 0:00:14]} dxe5 {[%emt 0:00:02]} 11. Ng5 {[%emt 0:00:01]} Nc5 {[%emt 0:00:30] E67: King's Indian: Fianchetto: 6...Nbd7.} 12. b4 {[%emt 0:00:04]} Ne6 {[%emt 0:00:02]} 13. Nge4 {[%emt 0:00:06]} Nxe4 {[%emt 0:00:04] The position is equal.} 14. Nxe4 {[%emt 0:00:03]} Qe7 {[%emt 0:00:28]} 15. c5 {[%emt 0:00:23] [#]} b6 $146 {[%emt 0:00:17][%cal Rb6c5]} ({Predecessor:} 15... Rd8 16. Nd6 Nd4 17. e3 Nb5 18. Nxc8 Raxc8 19. Qc2 Nc7 20. Rfd1 Rxd1+ 21. Rxd1 Rd8 {0-1 (71) Matviishen,V (2398)-Bortnyk,M (2417) Lvov 2017}) 16. Nd6 {[%emt 0:00:02]} Rd8 {[%emt 0:00:00]} 17. Bxc6 {[%emt 0:00:07]} Rb8 {[%emt 0:00:01]} 18. Qc2 {[%emt 0:00:25]} bxc5 {[%emt 0:00:04]} 19. bxc5 {[%emt 0:00:01] [#]} (19. Nxc8 $11 {feels stronger.} Rbxc8 20. b5) 19... Qc7 {[%emt 0:00:15]} (19... Nxc5 $1 $15 20. Ba3 Ne6) 20. Nxc8 $11 {[%emt 0:00:38]} Rdxc8 {[%emt 0:00:17][%cal Bd8c8,Bc8c5,Bc5c2][%mdl 32]} 21. Bd5 {[%emt 0:00:07] A strong pair of Bishops.} Qxc5 {[%emt 0:00:23]} 22. Qxc5 {[%emt 0:00:04]} Rxc5 {[%emt 0:00:21]} 23. Bxe6 {[%emt 0:00:06]} Rxb2 {[%emt 0:00:02]} 24. Bg4 {[%emt 0:00:08]} (24. Bb3 $15) 24... f5 $17 {[%emt 0:00:02]} 25. Bf3 {[%emt 0:00:01]} (25. Bh3 $17 {is the only way for White.}) 25... e4 $19 {[%emt 0:00:00]} 26. Bg2 {[%emt 0:00:01]} Rxe2 {[%emt 0:00:02]} 27. Rfe1 {[%emt 0:00:29]} Rcc2 {[%emt 0:00:13]} ({Not} 27... Bxa1 $2 28. Rxe2 Rc1+ 29. Bf1) 28. Rxe2 {[%emt 0:00:19]} Rxe2 {[%emt 0:00:01][%mdl 4096] Endgame KRB-KRB} 29. Bf1 {[%emt 0:00:03] [#]} Rd2 {[%emt 0:00:05]} ({Worse is} 29... Bxa1 30. Bxe2 Bd4 31. Kf1 $17) (29... Rxf2 $1 $19 {is more deadly. And now ...Bd4 would win.} 30. Bc4+ Kf8 31. Kxf2 Bxa1) 30. Rb1 {[%emt 0:00:07]} (30. Re1 $17 {was called for.}) 30... Bd4 {[%emt 0:00:04] Threatens to win with ...Kg7.} 31. Kg2 $2 {[%emt 0:00:09]} (31. Bc4+ Kg7 32. Rf1) 31... Rxf2+ {[%emt 0:00:01]} 32. Kh3 $2 {[%emt 0:00:00]} (32. Kh1) 32... Kg7 {[%emt 0:00:02]} 33. Rb7+ {[%emt 0:00:02]} Kh6 {[%emt 0:00:01]} 34. Bc4 {[%emt 0:00:01]} e3 {[%emt 0:00:07]} (34... g5 $142 35. g4 Be5 36. Rxh7+ Kxh7 37. gxf5 Rxh2+ 38. Kg4 Kh6 39. f6 Kg6 40. Bf7+ Kxf6 41. Bh5 Rh4#) 35. Re7 {[%emt 0:00:03]} Rc2 {[%emt 0:00:01]} 36. Bg8 {[%emt 0:00:01]} (36. Bb3 $142 Rd2 37. Bc4) 36... e2 {[%emt 0:00:04] ( -> ...Bg1)} 37. Rxh7+ {[%emt 0:00:03]} Kg5 {[%emt 0:00:01]} 38. Re7 {[%emt 0:00:01]} Bf2 {[%emt 0:00:02]} 39. Kg2 {[%emt 0:00:04] [#]} e1=Q {[%emt 0:00:04]} (39... Be3 $142 $1 {[%mdl 512]} 40. h4+ Kg4 41. Re4+ fxe4 42. Be6+ Kh5 43. Kh3 e1=Q 44. g4+ Kh6 45. g5+ Kg7 46. Kg4 Rg2+ 47. Kh3 Qh1#) 40. h4+ {[%emt 0:00:01]} Kg4 {[%emt 0:00:07][%csl Ge1][%cal Rf2e3]} 41. Rxe1 {[%emt 0:00:04]} Bxe1+ {[%emt 0:00:01][%mdl 32768] Weighted Error Value: White=1.20/Black=0.71. Loss on time!?} 1-0

[Event "Portuguese Team Blitz-ch 2022"]
[Site "Viseu"]
[Date "2022.06.12"]
[Round "6.8"]
[White "Gallo Garcia, Kemel Antonio"]
[Black "Pipiras, Filipa Fortuna"]
[Result "0-1"]
[ECO "A25"]
[WhiteElo "2332"]
[BlackElo "2135"]
[Annotator "TA"]
[PlyCount "75"]
[EventDate "2022.06.12"]
[EventType "team-tourn"]
[EventCountry "POR"]
[SourceTitle "playchess.com"]
[Source "ChessBase"]
[SourceQuality "1"]
[TimeControl "180+2"]

{[%evp 9,75,-15,-23,-133,-33,-107,-18,-113,-9,-14,0,0,33,0,5,-42,9,-68,0,0,0,-48,-20,-66,-73,-206,-189,-217,-239,-419,-42,-142,-119,-111,-115,-112,-42,-120,-97,-107,-60,-69,6,0,106,94,115,60,55,-19,7,7,22,0,0,0,21,0,25,0,0,-83,-93,-653,-653,-632,-625,-538]} 1. c4 {[%emt 0:00:03]} e5 {[%emt 0:00:04]} 2. Nc3 {[%emt 0:00:01]} Nc6 {[%emt 0:00:03]} 3. g3 {[%emt 0:00:01]} Nf6 {[%emt 0:00:01]} 4. Bg2 {[%emt 0:00:01]} Bc5 {[%emt 0:00:02]} 5. e4 {[%emt 0:00:11]} d6 {[%emt 0:00:07]} 6. Nge2 {[%emt 0:00:03] A25: English Opening vs King's Indian with ...Nc6 but without early d3.} (6. h3 $11) 6... Be6 {[%emt 0:00:07] [#]} (6... Ng4 $1 $17 {[%cal Rg4f2]} 7. O-O h5) 7. b3 $146 {[%emt 0:00:05]} (7. d3 $15) ({Predecessor:} 7. d3 Ng4 8. O-O Qf6 9. Nd5 Bxd5 10. exd5 Nb4 11. a3 Nxf2 12. Qa4+ b5 13. Qxb5+ c6 14. dxc6 Nbxd3 {0-1 (22) Nakvanich,S (1707)-Arunnuntapanich,T (2128) Ayutthaya 2022}) 7... a5 {[%emt 0:00:02]} (7... Ng4 $17 8. O-O Qf6) 8. Bb2 {[%emt 0:00:05]} (8. h3 $11) 8... O-O {[%emt 0:00:06] Black is more active.} (8... Ng4 $17 9. O-O Qf6) 9. O-O $11 {[%emt 0:00:03]} Nb4 {[%emt 0:00:23]} 10. d3 {[%emt 0:00:09]} (10. d4 Bxd4 11. Nxd4 exd4 $15) 10... c6 {[%emt 0:00:13]} 11. a3 {[%emt 0:00:11]} Na6 {[%emt 0:00:03]} 12. d4 {[%emt 0:00:17]} (12. Qc2 $11 {is superior.}) 12... Ba7 {[%emt 0:00:22]} (12... exd4 $15 13. Na4 (13. Nxd4 Bxd4 14. Qxd4 Nc5 $15) 13... b5 14. Nxc5 dxc5) 13. Kh1 {[%emt 0:00:12]} (13. Bc1 $11) 13... Qe7 {[%emt 0:00:36]} (13... exd4 $15 14. Nxd4 Bxd4 15. Qxd4 Nc5) 14. f4 {[%emt 0:00:21]} Bg4 {[%emt 0:00:09]} 15. fxe5 {[%emt 0:00:19]} (15. h3 $11 exd4 16. hxg4 dxc3 17. Nxc3) 15... dxe5 $15 {[%emt 0:00:01]} 16. dxe5 {[%emt 0:00:14]} (16. d5 $11) 16... Nd7 $1 {[%emt 0:00:02]} ({Don't play} 16... Qxe5 17. Qc2 Qh5 18. Rae1 $11) 17. Rf4 {[%emt 0:00:20]} (17. h3 $17 {was called for.} Bxe2 18. Nxe2) 17... Nxe5 $19 {[%emt 0:00:06] Strongly threatening ...Nc5.} 18. Na4 {[%emt 0:00:18]} Rad8 {[%emt 0:00:15]} 19. Qe1 {[%emt 0:00:01]} (19. Qc2) 19... Bh5 $2 {[%emt 0:00:05]} (19... Nd3 $19 20. Rxg4 f6 21. Qxa5 Nf2+ 22. Kg1 Nxg4+ 23. c5 Ne3) 20. Qxa5 {[%emt 0:00:10]} ({Better is} 20. Bxe5 $15 Qxe5 21. Rf5 Qxa1 22. Qxa1 Bxe2 23. Nc3) 20... Bxe2 {[%emt 0:00:05]} 21. Qxe5 {[%emt 0:00:12]} Qxe5 {[%emt 0:00:15]} 22. Bxe5 {[%emt 0:00:01]} Rd3 {[%emt 0:00:03]} (22... Bd1 $17 23. Rb1 Bc2) 23. b4 {[%emt 0:00:07]} (23. Re1 $15 Be3 24. Bf3) 23... f6 {[%emt 0:00:04][%mdl 1024] Black has strong compensation.} 24. Bb2 {[%emt 0:00:04]} Rfd8 {[%emt 0:00:04]} ({Black should try} 24... Be3 $17 25. Rf5 Rfd8) 25. c5 $15 {[%emt 0:00:02]} Nc7 {[%emt 0:00:02]} (25... Rd1+ $15 26. Bf1 Rxa1 27. Bxa1 Rd1) 26. Re1 {[%emt 0:00:05]} Bh5 {[%emt 0:00:01] [#]} (26... Rd1 $11 27. Rg1 R1d2) 27. e5 $1 $16 {[%emt 0:00:05]} fxe5 {[%emt 0:00:03]} 28. Bxe5 {[%emt 0:00:01]} ({White should play} 28. Rf5 $16 Rd1 29. Rfxe5) 28... Nd5 $14 {[%emt 0:00:02]} 29. Rfe4 {[%emt 0:00:08]} (29. Bxd5+ $14 R3xd5 30. Nc3) 29... Bg6 {[%emt 0:00:01]} 30. Rd4 {[%emt 0:00:02]} Rxa3 {[%emt 0:00:04]} 31. Nb6 {[%emt 0:00:08]} (31. Nc3 $5 Rxc3 {[#]} 32. Rxd5 $1 $14) 31... Bxb6 {[%emt 0:00:02]} 32. cxb6 {[%emt 0:00:01][%cal Ob4b5]} Bf7 {[%emt 0:00:01]} 33. Bc7 {[%emt 0:00:04] A strong pair of Bishops.} (33. b5 $5 Rb3 34. bxc6 bxc6 35. Bc7 $14) 33... Rc8 {[%emt 0:00:04]} 34. Rde4 (34. b5 $5 {[%cal Rb5c6]} Rb3 35. bxc6 bxc6 36. Rc1 $14) 34... Nxc7 35. bxc7 (35. Bh3 $11 {keeps the balance.} Ne6 36. Rxe6 (36. Bxe6 Bxe6 37. Rxe6 Ra6 $11)) 35... Rxc7 $17 36. Re7 $2 {[%mdl 8192]} (36. Kg1 $17) 36... Rxe7 $19 37. Rxe7 Ra1+ 38. Bf1 {Weighted Error Value: White=0.66/Black=0.54} 0-1

[Event "Portuguese Team Blitz-ch 2022"]
[Site "Viseu"]
[Date "2022.06.12"]
[Round "7.1"]
[White "Martins, Bruno Andre Leite"]
[Black "Polaczek, Richard"]
[Result "1-0"]
[ECO "C05"]
[WhiteElo "2327"]
[BlackElo "2356"]
[Annotator "TA"]
[PlyCount "92"]
[EventDate "2022.06.12"]
[EventType "team-tourn"]
[EventCountry "POR"]
[SourceTitle "playchess.com"]
[Source "ChessBase"]
[SourceQuality "1"]
[TimeControl "180+2"]

{[%evp 21,92,26,28,14,58,72,95,83,85,75,89,63,45,39,117,46,74,5,15,12,15,-164,-184,-337,-33,-50,-57,-48,-52,-72,-56,-65,0,-12,26,-106,0,0,0,-118,-109,-104,-125,-450,0,0,0,0,0,0,0,0,0,0,0,0,0,0,0,0,0,0,0,0,0,0,29992,8,8,12,29,31,46]} 1. e4 e6 2. d4 d5 3. Nd2 Nf6 4. Bd3 c5 5. e5 Nfd7 6. c3 b6 7. Ne2 Ba6 8. Bxa6 Nxa6 9. O-O Be7 10. f4 {10.Nf4 is more fashionable.} Nc7 11. Nf3 O-O 12. Be3 {[#] C06: French Tarrasch: 3...Nf6 4 e5 Nfd7 5 Bd3 main lines.} cxd4 $146 ({Predecessor:} 12... f5 13. exf6 Nxf6 14. Ne5 Ne4 15. Qd3 Qe8 16. Rad1 Rd8 17. h3 Bd6 18. Kh2 Qh5 19. Rf3 Bxe5 20. dxe5 {½-½ (76) Teske,H (2578)-Almeida Toledano,D (2254) Barbera del Valles 2007}) 13. cxd4 Qc8 14. g4 {White is better.} f6 15. Ng3 Qa6 16. Qd2 Rac8 17. Rf2 b5 (17... Qa4 $14) 18. Kh1 (18. f5 $16) 18... b4 19. b3 ({Better is} 19. f5 $16) 19... Nb5 $11 20. f5 Nc3 21. exf6 $2 (21. g5 $11 fxe5 22. f6 (22. Nxe5 Nxe5 23. dxe5 d4 $17)) 21... Nxf6 $19 {aiming for ...Nce4.} 22. Ng5 (22. Rg2 {might work better.}) 22... Nce4 $2 (22... Nxg4 $19 23. Nxe6 Nxf2+ 24. Qxf2 Rf7) 23. N3xe4 Nxe4 24. Nxe4 dxe4 25. d5 exf5 26. gxf5 Rcd8 (26... Rc3 $15 27. Rg1 Bf6) 27. Rg1 Qd3 28. Bh6 ({Much weaker is} 28. Qb2 Bf6 29. Qe2 Rxd5 30. Bxa7 Rf7 $17) (28. Bd4 $1 $11 Rf7 29. f6 (29. Qxd3 exd3 30. f6 Bd6 $11)) 28... Bf6 (28... Rf7 $17 29. Rfg2 Qxd2 30. Rxd2 Rd7) 29. Bxg7 $11 Bxg7 ({Don't do} 29... Qxd2 30. Bxf8+ Qg5 31. Rxg5+ Bxg5 32. Bxb4 Rxd5 33. Kg2) 30. Qg5 (30. f6 $11 {remains equal.} Qxd2 31. Rxg7+ Kh8 32. Rxd2) 30... Rd7 $17 31. f6 {[%mdl 64] Pin} e3 32. Rf4 {[%mdl 8192] [#]} (32. Rfg2 $17 {was the crucial defense.}) 32... Qxd5+ $2 (32... Rff7 33. Rxb4 Rxf6 34. Qe5 $19) ({Black should play} 32... e2 $1 $19 33. Qg2 (33. Qe5 Qxd5+) 33... Qxd5 34. Qxd5+ Rxd5) 33. Qxd5+ $11 Rxd5 34. Rxg7+ $19 {[%mdl 4096] Endgame KRR-KRR} Kh8 {And now ...e2 would win.} 35. Re7 Rd1+ 36. Kg2 Rd2+ 37. Kh3 Rxa2 38. Rxe3 Rb2 39. Kg4 Rxh2 40. Kf5 Rh5+ 41. Kg4 Rb5 42. Re7 Rb6 43. Kg5 Rb5+ $2 {[%mdl 8192] [#]} (43... Rg8+ $11 44. Kf5 Rf8) 44. Rf5 $2 (44. Kh6 $1 {mates} Rfb8 45. Rxh7+ Kg8 46. Rg4+ Kf8 47. Rgg7 Rh5+ 48. Kxh5 Rb5+ 49. Kg6 Rh5 50. Kxh5 Ke8 51. Rh8#) 44... Rg8+ 45. Kf4 Rxf5+ 46. Kxf5 {Intending f7 and mate.} Rb8 {A wild game.  Weighted Error Value: White=0.74/Black=0.83} 1-0

[Event "Portuguese Team Blitz-ch 2022"]
[Site "Viseu"]
[Date "2022.06.12"]
[Round "7.2"]
[White "Cavaleiro, Daniel Felipe Costa"]
[Black "Rego, Pedro Filipe"]
[Result "1-0"]
[ECO "A57"]
[WhiteElo "1993"]
[BlackElo "2251"]
[Annotator "TA"]
[PlyCount "85"]
[EventDate "2022.06.12"]
[EventType "team-tourn"]
[EventCountry "POR"]
[SourceTitle "playchess.com"]
[Source "ChessBase"]
[SourceQuality "1"]
[TimeControl "180+2"]

{[%evp 23,85,0,0,0,-2,-35,-12,-42,19,-39,0,0,0,0,0,0,0,0,21,19,28,18,65,32,67,66,71,54,89,95,82,0,79,76,136,72,112,22,14,12,297,0,0,0,0,0,0,0,0,-8,129,0,0,-90,-111,-125,-139,-152,-155,-160,-143,-227,-219,-268]} 1. d4 Nf6 2. c4 c5 3. d5 b5 4. cxb5 a6 5. b6 d6 6. Nc3 Nbd7 7. e4 g6 8. Be2 Bg7 9. Nf3 O-O 10. Nd2 Nxb6 11. a4 a5 12. O-O e6 13. dxe6 {A57: Benko/Volga Gambit.} Bxe6 14. Nb5 Qe7 15. Qc2 {[#] The position is equal.} Nfd7 $146 (15... Rfe8 $15) ({Predecessor:} 15... d5 16. Bf3 Rfd8 17. exd5 Bxd5 18. Bxd5 Nbxd5 19. Nb3 Nd7 20. Bd2 Nb4 21. Bxb4 cxb4 {½-½ (34) Meier,D-Laqua,C (2210) Hamburg 1997}) 16. Bc4 (16. Nf3 $11) 16... Ne5 {[%cal Bd7e5,Be5c6,Bc6b4][%mdl 32]} 17. Bxe6 fxe6 ({Don't do} 17... Qxe6 18. Nc7 Qg4 19. Nxa8 Rxa8 20. Ra3 $16) 18. f4 Nc6 19. Nf3 Nb4 20. Qe2 Rae8 21. Rd1 d5 22. e5 $1 d4 (22... Rb8 $11) 23. Qe4 N6d5 24. Bd2 Ra8 25. Rac1 Rac8 26. Nd6 Rc7 27. Nb5 (27. Rf1 $16) 27... Rc6 (27... Rcc8 $1 $11) 28. g3 $16 {Black must now prevent Bxb4.} Rd8 (28... Qd7 $142) 29. Kg2 ({White should try} 29. Bxb4 Nxb4 30. Nbxd4 $1 {[%mdl 512]} cxd4 31. Rxc6) 29... Bf8 30. Ne1 (30. Bxb4 $16 Nxb4 31. Nbxd4 $1 cxd4 32. Rxc6) 30... Qd7 $11 31. Nd3 Nc7 $2 {[%mdl 8192]} (31... Nxd3 $11 32. Qxd3 Rb8) 32. Nxb4 $2 (32. Bxb4 $18 axb4 33. Nxd4 $1 {[%mdl 512]}) 32... axb4 33. Bxb4 Nxb5 $1 34. axb5 Rcc8 35. Ba5 Re8 36. b6 {[%cal Ob2b4] And now b4! would win.} Ra8 {[#]} (36... Qb5 $1 $11 37. Ra1 (37. b7 Rb8 $15) 37... Ra8) 37. Be1 {White is more active.} ({White has to play} 37. b4 $1 $16 {[%cal Rb4c5]}) 37... Qb5 38. Rd2 (38. b4 $1 $11 Ra2+ 39. Bf2 Qxb6 40. bxc5 Bxc5 41. Rc2 Rxc2 42. Qxc2) 38... Qxb6 $17 (38... Qb3 {is interesting.} 39. g4 Reb8 40. Rb1 Ra2) 39. Bf2 Ra2 40. Rcc2 {Black is clearly better.} Rb8 41. Qe2 Qc6+ 42. Kh3 (42. Qf3 $17 Qd5 43. Rd3) 42... Qd5 $19 43. Qc4 {[%mdl 32768] Weighted Error Value: White=0.40/Black=0.42. Loss on time!?} 1-0

[Event "Portuguese Team Blitz-ch 2022"]
[Site "Viseu"]
[Date "2022.06.12"]
[Round "7.3"]
[White "Silva, Miguel Antonio Neto"]
[Black "Navarro Duarte, Carlos Enrique"]
[Result "1-0"]
[ECO "A05"]
[WhiteElo "2215"]
[BlackElo "2195"]
[Annotator "TA"]
[PlyCount "53"]
[EventDate "2022.06.12"]
[EventType "team-tourn"]
[EventCountry "POR"]
[SourceTitle "playchess.com"]
[Source "ChessBase"]
[SourceQuality "1"]
[TimeControl "180+2"]

{[%evp 12,52,22,14,40,47,29,39,82,86,96,79,89,62,58,48,59,46,183,164,569,564,562,482,600,591,691,693,725,722,791,789,896,881,2077,2004,7264,6327,29989,29990,29993,29994,29999]} 1. Nf3 {[%emt 0:00:02]} Nf6 {[%emt 0:00:02]} 2. c4 {[%emt 0:00:02]} b6 {[%emt 0:00:05]} 3. g3 {[%emt 0:00:01]} Bb7 {[%emt 0:00:01]} 4. Bg2 {[%emt 0:00:01]} e6 {[%emt 0:00:09]} 5. O-O {[%emt 0:00:02]} d5 {[%emt 0:00:01]} 6. Ne5 {[%emt 0:00:04]} Bd6 {[%emt 0:00:10]} 7. d4 {[%emt 0:00:02]} c5 {[%emt 0:00:10] D02: 1 d4 d5 2 Nf3 sidelines, including 2...Nf6 3 g3 and 2...Nf6 3 Bf4.} 8. Qa4+ {[%emt 0:00:11]} Nbd7 {[%emt 0:00:02] [#]} 9. Nxd7 $146 {[%emt 0:00:11]} (9. cxd5 {is interesting.} Nxd5 10. Rd1 cxd4 11. Nxd7 Qxd7 12. Qxd4 f5 13. Nc3) ({Predecessor:} 9. Bf4 Qc7 10. Nc3 a6 11. Nxd7 Nxd7 12. Bxd6 Qxd6 13. dxc5 bxc5 14. cxd5 e5 15. Ne4 Qb6 16. Rac1 {1-0 (30) Nelson,O (1956)-Islam,M (1725) London 2018}) 9... Nxd7 {[%emt 0:00:03] White is slightly better.} 10. cxd5 {[%emt 0:00:04]} (10. dxc5 {with more complications.} bxc5 11. cxd5 exd5 12. Qb3) 10... Bxd5 {[%emt 0:00:09]} 11. Bxd5 {[%emt 0:00:04]} exd5 {[%emt 0:00:02]} 12. dxc5 {[%emt 0:00:03]} Bxc5 {[%emt 0:00:05]} 13. Nc3 {[%emt 0:00:08] [#] Threatens to win with Rd1.} O-O {[%emt 0:00:16]} 14. Nxd5 {[%emt 0:00:09]} Be7 {[%emt 0:00:33] Loses the game.} (14... Nf6 $14 15. Nc3 h6) 15. Rd1 $18 {[%emt 0:00:06]} Qe8 {[%emt 0:00:08]} (15... Nc5 16. Qg4 Ne6) 16. Nxe7+ {[%emt 0:00:03]} Qxe7 {[%emt 0:00:03]} 17. Qxd7 {[%emt 0:00:03]} Qxd7 {[%emt 0:00:04]} 18. Rxd7 {[%emt 0:00:01]} a5 {[%emt 0:00:03]} 19. Be3 {[%emt 0:00:04]} b5 {[%emt 0:00:02]} 20. Rc1 {[%emt 0:00:02]} b4 {[%emt 0:00:10]} 21. Rcc7 {[%emt 0:00:02]} a4 {[%emt 0:00:02]} 22. Bc5 {[%emt 0:00:02][%csl LRb4,LRf8]} b3 {[%emt 0:00:01]} 23. axb3 {[%emt 0:00:03]} axb3 {[%emt 0:00:02]} 24. Bxf8 {[%emt 0:00:02]} Kxf8 {[%emt 0:00:13]} 25. Rxf7+ {[%emt 0:00:02] White mates.} Ke8 {[%emt 0:00:09]} 26. Rxg7 {[%emt 0:00:02][%cal Rg7g8]} h5 {[%emt 0:00:01]} 27. Rg8# {[%emt 0:00:02] Weighted Error Value: White=0.09 (flawless) /Black=1.18} 1-0